[Event "*** Titled Tuesday Blitz"]
[Site "Chess.com"]
[Date "2019.04.02"]
[Round "9"]
[White "SoltaniciR"]
[Black "IMDT02"]
[Result "1-0"]
[WhiteElo "2589"]
[BlackElo "2443"]
[TimeControl "180+2"]
[EndTime "16:05:04 PDT"]
[Termination "SoltaniciR won by resignation"]

1. e4 {[%clk 0:03:01.9]} 1... c5 {[%clk 0:03:00.5]} 2. Nf3 {[%clk 0:03:00.9]}
2... Nc6 {[%clk 0:03:00.8]} 3. Nc3 {[%clk 0:03:01.6]} 3... e5 {[%clk 0:03:00.3]}
4. Bc4 {[%clk 0:03:01.6]} 4... d6 {[%clk 0:03:00.7]} 5. d3 {[%clk 0:03:02.5]}
5... Be7 {[%clk 0:03:01.3]} 6. Nd2 {[%clk 0:03:03.3]} 6... Nf6 {[%clk 0:03:02]}
7. Nf1 {[%clk 0:03:03.6]} 7... O-O {[%clk 0:03:02.7]} 8. Ne3 {[%clk 0:03:04.2]}
8... Be6 {[%clk 0:02:58.6]} 9. O-O {[%clk 0:03:05]} 9... Nd4 {[%clk 0:02:58.6]}
10. a4 {[%clk 0:03:03.1]} 10... Qd7 {[%clk 0:02:46.6]} 11. Ncd5 {[%clk
0:03:03.9]} 11... Qd8 {[%clk 0:02:41.9]} 12. c3 {[%clk 0:03:03.3]} 12... Nc6
{[%clk 0:02:42.7]} 13. g3 {[%clk 0:02:48.4]} 13... Bh3 {[%clk 0:02:36.4]} 14.
Ng2 {[%clk 0:02:47.7]} 14... Nxd5 {[%clk 0:02:35]} 15. Bxd5 {[%clk 0:02:47.8]}
15... Be6 {[%clk 0:02:28]} 16. f4 {[%clk 0:02:31.8]} 16... Bxd5 {[%clk
0:02:03.7]} 17. exd5 {[%clk 0:02:33]} 17... Nb8 {[%clk 0:02:04.2]} 18. f5 {[%clk
0:01:47.8]} 18... Nd7 {[%clk 0:02:00.4]} 19. Ne3 {[%clk 0:01:48.6]} 19... Bg5
{[%clk 0:01:58]} 20. Nc4 {[%clk 0:01:24.7]} 20... Be7 {[%clk 0:01:33.6]} 21. h4
{[%clk 0:01:19.9]} 21... a6 {[%clk 0:01:21.9]} 22. a5 {[%clk 0:01:19.6]} 22...
b5 {[%clk 0:01:20.2]} 23. axb6 {[%clk 0:01:19.4]} 23... Nxb6 {[%clk 0:01:20.7]}
24. Ne3 {[%clk 0:01:04]} 24... Nd7 {[%clk 0:01:18.3]} 25. Kg2 {[%clk 0:01:01.1]}
25... Qc7 {[%clk 0:01:18.7]} 26. Qf3 {[%clk 0:00:57]} 26... Rfe8 {[%clk
0:01:03.2]} 27. Ng4 {[%clk 0:00:51.3]} 27... Nf6 {[%clk 0:01:03.1]} 28. Nxf6+
{[%clk 0:00:51.3]} 28... Bxf6 {[%clk 0:01:04.3]} 29. Qe4 {[%clk 0:00:52.7]}
29... Qb7 {[%clk 0:01:02.1]} 30. Rh1 {[%clk 0:00:51.2]} 30... Qb3 {[%clk
0:01:01.2]} 31. g4 {[%clk 0:00:48.5]} 31... Qc2+ {[%clk 0:00:54.6]} 32. Kg3
{[%clk 0:00:49.6]} 32... c4 {[%clk 0:00:51.5]} 33. g5 {[%clk 0:00:50.4]} 33...
Bd8 {[%clk 0:00:37.9]} 34. Qxc4 {[%clk 0:00:47.7]} 34... e4 {[%clk 0:00:39.2]}
35. Rh2 {[%clk 0:00:20.6]} 35... Qxd3+ {[%clk 0:00:25.6]} 36. Qxd3 {[%clk
0:00:21]} 36... exd3 {[%clk 0:00:27.5]} 37. Bf4 {[%clk 0:00:22.2]} 37... Bb6
{[%clk 0:00:16.8]} 38. Rd2 {[%clk 0:00:21.5]} 38... Re2 {[%clk 0:00:13.3]} 39.
Rxe2 {[%clk 0:00:21.1]} 39... dxe2 {[%clk 0:00:14]} 40. Re1 {[%clk 0:00:22.6]}
40... Re8 {[%clk 0:00:11.5]} 41. Kf3 {[%clk 0:00:24.1]} 41... Bc5 {[%clk
0:00:09.2]} 42. b4 {[%clk 0:00:21.9]} 42... Bg1 {[%clk 0:00:06.3]} 43. Rxe2
{[%clk 0:00:22.3]} 1-0

[Event "*** Titled Tuesday Blitz"]
[Site "Chess.com"]
[Date "2019.04.02"]
[Round "9"]
[White "Bryakin_Mikhail"]
[Black "Ginger_GM"]
[Result "0-1"]
[WhiteElo "2741"]
[BlackElo "2637"]
[TimeControl "180+2"]
[EndTime "16:05:05 PDT"]
[Termination "Ginger_GM won by resignation"]

1. d4 {[%clk 0:03:01.9]} 1... e6 {[%clk 0:03:00.1]} 2. c4 {[%clk 0:03:03.2]}
2... f5 {[%clk 0:03:00.9]} 3. g3 {[%clk 0:03:02.8]} 3... Nf6 {[%clk 0:03:01.8]}
4. Bg2 {[%clk 0:03:04.1]} 4... Be7 {[%clk 0:03:03.1]} 5. Qc2 {[%clk 0:02:49.3]}
5... O-O {[%clk 0:03:01.3]} 6. Nh3 {[%clk 0:02:50.2]} 6... d6 {[%clk 0:03:00.9]}
7. O-O {[%clk 0:02:49.9]} 7... e5 {[%clk 0:02:59]} 8. dxe5 {[%clk 0:02:47.6]}
8... dxe5 {[%clk 0:03:00]} 9. Rd1 {[%clk 0:02:45.9]} 9... Qe8 {[%clk 0:03:00.6]}
10. b3 {[%clk 0:02:26.7]} 10... Qh5 {[%clk 0:02:56.6]} 11. f4 {[%clk 0:02:15.1]}
11... Bc5+ {[%clk 0:02:37.6]} 12. e3 {[%clk 0:02:14.9]} 12... e4 {[%clk
0:02:14.2]} 13. Nf2 {[%clk 0:02:11.9]} 13... Nc6 {[%clk 0:02:11.4]} 14. a3
{[%clk 0:02:13]} 14... a5 {[%clk 0:02:12.2]} 15. Nc3 {[%clk 0:02:11.2]} 15...
Be6 {[%clk 0:02:08]} 16. Nb5 {[%clk 0:02:11.8]} 16... Qf7 {[%clk 0:01:57.1]} 17.
Re1 {[%clk 0:01:53.7]} 17... h5 {[%clk 0:01:53.2]} 18. Bb2 {[%clk 0:01:51.7]}
18... Rac8 {[%clk 0:01:49.2]} 19. Rad1 {[%clk 0:01:42.6]} 19... h4 {[%clk
0:01:48.4]} 20. Nd4 {[%clk 0:01:35.1]} 20... hxg3 {[%clk 0:01:41.7]} 21. hxg3
{[%clk 0:01:35.5]} 21... Nh5 {[%clk 0:01:32.1]} 22. g4 {[%clk 0:01:05.8]} 22...
fxg4 {[%clk 0:01:29.8]} 23. Nxe4 {[%clk 0:01:06.6]} 23... Bxd4 {[%clk
0:01:23.7]} 24. Bxd4 {[%clk 0:01:04]} 24... Bf5 {[%clk 0:01:21.6]} 25. Qc3
{[%clk 0:00:51.3]} 25... Qg6 {[%clk 0:00:57.5]} 26. Ng5 {[%clk 0:00:44.5]} 26...
Rce8 {[%clk 0:00:30.5]} 27. Bc5 {[%clk 0:00:33.4]} 27... Rf6 {[%clk 0:00:28.6]}
28. b4 {[%clk 0:00:21.6]} 28... axb4 {[%clk 0:00:28.6]} 29. axb4 {[%clk
0:00:23.5]} 29... Ng3 {[%clk 0:00:30.1]} 30. b5 {[%clk 0:00:22.1]} 30... Ne4
{[%clk 0:00:22.4]} 31. Nxe4 {[%clk 0:00:18]} 31... Bxe4 {[%clk 0:00:24.3]} 32.
bxc6 {[%clk 0:00:19.5]} 32... Bxg2 {[%clk 0:00:25.2]} 33. e4 {[%clk 0:00:03.5]}
33... Bxe4 {[%clk 0:00:21.5]} 34. cxb7 {[%clk 0:00:04.5]} 34... Rfe6 {[%clk
0:00:19]} 35. Qg3 {[%clk 0:00:05.1]} 35... Qh5 {[%clk 0:00:19.6]} 36. Kf2 {[%clk
0:00:05.2]} 36... Qxc5+ {[%clk 0:00:20.5]} 37. Qe3 {[%clk 0:00:05.7]} 37...
Qxe3+ {[%clk 0:00:20.3]} 38. Rxe3 {[%clk 0:00:07.6]} 38... Bxb7 {[%clk
0:00:21.8]} 39. Rxe6 {[%clk 0:00:08.9]} 39... Rxe6 {[%clk 0:00:23.7]} 40. Rd7
{[%clk 0:00:10.4]} 40... Rc6 {[%clk 0:00:24.7]} 41. Rd4 {[%clk 0:00:11.8]} 41...
Ba6 {[%clk 0:00:25.6]} 42. Kg3 {[%clk 0:00:12.5]} 42... Rxc4 {[%clk 0:00:26.5]}
43. Rd8+ {[%clk 0:00:14.4]} 43... Kf7 {[%clk 0:00:27.8]} 44. Kxg4 {[%clk
0:00:16.3]} 44... Bb5 {[%clk 0:00:29.2]} 45. Rc8 {[%clk 0:00:17.2]} 45... Bd7+
{[%clk 0:00:30.3]} 0-1

[Event "*** Titled Tuesday Blitz"]
[Site "Chess.com"]
[Date "2019.04.02"]
[Round "9"]
[White "lachesisQ"]
[Black "VitaliyBernadskiy"]
[Result "1-0"]
[WhiteElo "3016"]
[BlackElo "2743"]
[TimeControl "180+2"]
[EndTime "16:05:23 PDT"]
[Termination "lachesisQ won by resignation"]

1. e4 {[%clk 0:03:01.9]} 1... c6 {[%clk 0:03:00.3]} 2. d4 {[%clk 0:03:00.6]}
2... d5 {[%clk 0:03:02.2]} 3. e5 {[%clk 0:03:02.5]} 3... Bf5 {[%clk 0:03:03.2]}
4. Nf3 {[%clk 0:03:03.4]} 4... e6 {[%clk 0:03:03.8]} 5. c3 {[%clk 0:03:04.8]}
5... Ne7 {[%clk 0:02:57.2]} 6. Be2 {[%clk 0:03:02.8]} 6... h6 {[%clk 0:02:55.1]}
7. O-O {[%clk 0:03:03.4]} 7... Nd7 {[%clk 0:02:50.4]} 8. Nbd2 {[%clk 0:03:03.5]}
8... c5 {[%clk 0:02:36.2]} 9. dxc5 {[%clk 0:02:59.6]} 9... Nxc5 {[%clk
0:02:27.1]} 10. Nd4 {[%clk 0:02:53.4]} 10... a6 {[%clk 0:02:18.3]} 11. N2b3
{[%clk 0:02:32.9]} 11... Nxb3 {[%clk 0:02:10.2]} 12. Qxb3 {[%clk 0:02:28.7]}
12... Qd7 {[%clk 0:02:11.2]} 13. Rd1 {[%clk 0:02:12.4]} 13... Be4 {[%clk
0:02:12.3]} 14. f3 {[%clk 0:02:12.9]} 14... Bg6 {[%clk 0:02:11.7]} 15. c4 {[%clk
0:02:14.2]} 15... Nc6 {[%clk 0:02:12]} 16. Be3 {[%clk 0:02:09.9]} 16... Nxd4
{[%clk 0:01:21.6]} 17. Bxd4 {[%clk 0:02:08.9]} 17... dxc4 {[%clk 0:01:22.5]} 18.
Bxc4 {[%clk 0:02:06.2]} 18... Be7 {[%clk 0:01:23.5]} 19. Bb6 {[%clk 0:01:57]}
19... Qc6 {[%clk 0:01:22.3]} 20. Rac1 {[%clk 0:01:57.9]} 20... Bc5+ {[%clk
0:01:08.2]} 21. Bxc5 {[%clk 0:01:56.4]} 21... Qxc5+ {[%clk 0:01:10.1]} 22. Kh1
{[%clk 0:01:57.9]} 22... O-O {[%clk 0:01:06.9]} 23. Bxa6 {[%clk 0:01:37.5]}
23... Qxe5 {[%clk 0:01:07.6]} 24. Bxb7 {[%clk 0:01:38.3]} 24... Rab8 {[%clk
0:01:09.1]} 25. a4 {[%clk 0:01:39.5]} 25... h5 {[%clk 0:01:00.3]} 26. Qb6 {[%clk
0:01:34.6]} 26... h4 {[%clk 0:00:55.2]} 27. h3 {[%clk 0:01:29.6]} 27... Bf5
{[%clk 0:00:46.3]} 28. a5 {[%clk 0:01:25.1]} 28... Qg3 {[%clk 0:00:47.3]} 29. a6
{[%clk 0:01:15.8]} 29... Bxh3 {[%clk 0:00:48.1]} 30. gxh3 {[%clk 0:01:16.5]}
30... Qxh3+ {[%clk 0:00:49.2]} 31. Kg1 {[%clk 0:01:18]} 31... Qg3+ {[%clk
0:00:49]} 32. Kf1 {[%clk 0:01:19]} 32... h3 {[%clk 0:00:50.3]} 33. Qf2 {[%clk
0:01:18.2]} 33... Qf4 {[%clk 0:00:34.1]} 34. Kg1 {[%clk 0:01:16.8]} 34... Rbd8
{[%clk 0:00:31.4]} 35. Kh1 {[%clk 0:01:15.4]} 35... Qb4 {[%clk 0:00:12.6]} 36.
Rxd8 {[%clk 0:00:50.5]} 36... Rxd8 {[%clk 0:00:14.5]} 37. Rc8 {[%clk 0:00:51.6]}
37... Rxc8 {[%clk 0:00:13.9]} 38. Bxc8 {[%clk 0:00:53.5]} 38... Qc4 {[%clk
0:00:08.6]} 39. Bb7 {[%clk 0:00:54]} 39... Qc1+ {[%clk 0:00:09.7]} 40. Kh2
{[%clk 0:00:42]} 40... Qf4+ {[%clk 0:00:10.5]} 41. Kxh3 {[%clk 0:00:43.4]} 41...
Qh6+ {[%clk 0:00:10.1]} 42. Qh4 {[%clk 0:00:44.2]} 42... Qc1 {[%clk 0:00:08.1]}
43. Qd8+ {[%clk 0:00:41.3]} 43... Kh7 {[%clk 0:00:08.8]} 44. Qd3+ {[%clk
0:00:42.3]} 44... f5 {[%clk 0:00:09.6]} 45. f4 {[%clk 0:00:37.1]} 45... Qxf4
{[%clk 0:00:07.9]} 46. Kg2 {[%clk 0:00:34]} 46... Qb4 {[%clk 0:00:05.5]} 47. b3
{[%clk 0:00:33.1]} 47... g5 {[%clk 0:00:05.6]} 48. Qd7+ {[%clk 0:00:33.3]} 48...
Kg6 {[%clk 0:00:06.1]} 49. Qxe6+ {[%clk 0:00:34.4]} 49... Kh5 {[%clk 0:00:07.5]}
50. Bf3+ {[%clk 0:00:34.8]} 1-0

[Event "*** Titled Tuesday Blitz"]
[Site "Chess.com"]
[Date "2019.04.02"]
[Round "9"]
[White "PawnEatingZombie"]
[Black "FearNoEvil12"]
[Result "1-0"]
[WhiteElo "2152"]
[BlackElo "2010"]
[TimeControl "180+2"]
[EndTime "16:05:33 PDT"]
[Termination "PawnEatingZombie won by resignation"]

1. d4 {[%clk 0:03:01.9]} 1... b5 {[%clk 0:02:59.9]} 2. Bg5 {[%clk 0:02:59.3]}
2... a6 {[%clk 0:03:01]} 3. e3 {[%clk 0:02:59.9]} 3... Bb7 {[%clk 0:03:02.5]} 4.
Nf3 {[%clk 0:03:01.4]} 4... h6 {[%clk 0:03:02.9]} 5. Bh4 {[%clk 0:03:01.9]} 5...
d6 {[%clk 0:03:03.8]} 6. Be2 {[%clk 0:03:00.1]} 6... Nd7 {[%clk 0:03:05.2]} 7.
Nbd2 {[%clk 0:02:57]} 7... Ngf6 {[%clk 0:03:06.6]} 8. c3 {[%clk 0:02:55.8]} 8...
e6 {[%clk 0:03:07.4]} 9. O-O {[%clk 0:02:55.5]} 9... g5 {[%clk 0:03:08.3]} 10.
Bg3 {[%clk 0:02:54.7]} 10... Rg8 {[%clk 0:03:09.8]} 11. a4 {[%clk 0:02:54.8]}
11... bxa4 {[%clk 0:03:08.7]} 12. Nc4 {[%clk 0:02:42.4]} 12... Rb8 {[%clk
0:02:59.7]} 13. Qxa4 {[%clk 0:02:35.4]} 13... h5 {[%clk 0:02:59.5]} 14. h4
{[%clk 0:02:15.5]} 14... gxh4 {[%clk 0:02:58.9]} 15. Bxh4 {[%clk 0:02:16]} 15...
Be7 {[%clk 0:03:00.4]} 16. Na5 {[%clk 0:01:58.3]} 16... Ng4 {[%clk 0:02:59.8]}
17. Nxb7 {[%clk 0:01:52.4]} 17... Rxb7 {[%clk 0:02:56]} 18. Bxe7 {[%clk
0:01:51.2]} 18... Qxe7 {[%clk 0:02:56.3]} 19. Bxa6 {[%clk 0:01:27.6]} 19... Rb8
{[%clk 0:02:51.6]} 20. Bb5 {[%clk 0:01:23.7]} 20... Nf6 {[%clk 0:02:46.8]} 21.
Rfc1 {[%clk 0:01:01.6]} 21... Rd8 {[%clk 0:02:45.8]} 22. b4 {[%clk 0:00:58.5]}
22... Kf8 {[%clk 0:02:45.8]} 23. c4 {[%clk 0:00:55.6]} 23... Nb6 {[%clk
0:02:29.5]} 24. Qd1 {[%clk 0:00:55.9]} 24... Ne4 {[%clk 0:02:30.5]} 25. Bc6
{[%clk 0:00:49.1]} 25... Ng5 {[%clk 0:02:29.7]} 26. Nxg5 {[%clk 0:00:49.4]}
26... Qxg5 {[%clk 0:02:29.6]} 27. Qf3 {[%clk 0:00:46.8]} 27... d5 {[%clk
0:02:08.2]} 28. c5 {[%clk 0:00:42.1]} 28... Nc4 {[%clk 0:02:07.6]} 29. Ra2
{[%clk 0:00:34.7]} 29... Rg6 {[%clk 0:01:50.9]} 30. Rca1 {[%clk 0:00:26.5]}
30... Kg7 {[%clk 0:01:47.9]} 31. Ra8 {[%clk 0:00:18.8]} 31... Rxa8 {[%clk
0:01:48.3]} 32. Bxa8 {[%clk 0:00:16.3]} 32... Nd2 {[%clk 0:01:49.8]} 33. Qh3
{[%clk 0:00:16.4]} 33... Ne4 {[%clk 0:01:33.5]} 34. b5 {[%clk 0:00:15.6]} 34...
Qf6 {[%clk 0:01:31.2]} 35. Rf1 {[%clk 0:00:16.2]} 35... Nc3 {[%clk 0:01:26.2]}
36. b6 {[%clk 0:00:15.3]} 36... Ne2+ {[%clk 0:01:26.5]} 37. Kh1 {[%clk
0:00:15.9]} 37... Rg4 {[%clk 0:01:27.6]} 38. b7 {[%clk 0:00:13.4]} 38... Rh4
{[%clk 0:01:27.3]} 39. b8=Q {[%clk 0:00:12.4]} 39... Rxh3+ {[%clk 0:01:27.1]}
40. gxh3 {[%clk 0:00:13.4]} 40... Qf3+ {[%clk 0:01:28.4]} 41. Kh2 {[%clk
0:00:13.5]} 41... Nf4 {[%clk 0:01:19.2]} 42. exf4 {[%clk 0:00:11.3]} 42... Qxf4+
{[%clk 0:01:20.1]} 43. Kg2 {[%clk 0:00:11.3]} 43... Qg5+ {[%clk 0:01:18]} 44.
Kh1 {[%clk 0:00:11]} 44... Qf4 {[%clk 0:01:16.6]} 45. Rg1+ {[%clk 0:00:08.5]}
45... Kf6 {[%clk 0:01:14.8]} 46. Qd8+ {[%clk 0:00:09.2]} 46... Kf5 {[%clk
0:01:15.8]} 47. Qg5+ {[%clk 0:00:08.3]} 47... Qxg5 {[%clk 0:01:15.9]} 48. Rxg5+
{[%clk 0:00:10.2]} 48... Kxg5 {[%clk 0:01:17.1]} 49. Kg2 {[%clk 0:00:07.5]}
49... Kf4 {[%clk 0:01:18.4]} 50. f3 {[%clk 0:00:07.9]} 50... Ke3 {[%clk
0:01:19.3]} 51. Kg3 {[%clk 0:00:07.7]} 51... Kxd4 {[%clk 0:01:20.1]} 52. Bc6
{[%clk 0:00:06.8]} 52... Kxc5 {[%clk 0:01:21.1]} 53. Be8 {[%clk 0:00:08.2]}
53... d4 {[%clk 0:01:19.2]} 54. Bxf7 {[%clk 0:00:08.4]} 54... Kd5 {[%clk
0:01:18.5]} 55. Bxh5 {[%clk 0:00:08.4]} 55... d3 {[%clk 0:01:19]} 56. f4 {[%clk
0:00:09.8]} 56... Ke4 {[%clk 0:01:19.6]} 57. Bf3+ {[%clk 0:00:10.9]} 57... Ke3
{[%clk 0:01:20]} 58. h4 {[%clk 0:00:12.5]} 58... c5 {[%clk 0:01:21]} 59. h5
{[%clk 0:00:13.9]} 59... c4 {[%clk 0:01:22.5]} 60. h6 {[%clk 0:00:15.1]} 60...
c3 {[%clk 0:01:24]} 61. h7 {[%clk 0:00:14.3]} 61... c2 {[%clk 0:01:24.9]} 62.
h8=Q {[%clk 0:00:15.5]} 62... c1=Q {[%clk 0:01:25.1]} 63. Qe5+ {[%clk
0:00:16.8]} 63... Kd2 {[%clk 0:01:25.9]} 64. Qa5+ {[%clk 0:00:16.2]} 64... Kc2
{[%clk 0:01:20.8]} 65. Qc5+ {[%clk 0:00:14.3]} 65... Kd2 {[%clk 0:01:21.6]} 66.
Qxc1+ {[%clk 0:00:14.8]} 66... Kxc1 {[%clk 0:01:22.5]} 67. Kg4 {[%clk
0:00:15.7]} 67... d2 {[%clk 0:01:23.4]} 68. Kg5 {[%clk 0:00:16.3]} 68... d1=Q
{[%clk 0:01:25.3]} 69. Bxd1 {[%clk 0:00:16.1]} 69... Kxd1 {[%clk 0:01:26.9]} 70.
Kf6 {[%clk 0:00:17.2]} 70... Ke2 {[%clk 0:01:28]} 71. Kxe6 {[%clk 0:00:18.5]}
71... Kf3 {[%clk 0:01:29.5]} 72. f5 {[%clk 0:00:19.8]} 1-0

[Event "*** Titled Tuesday Blitz"]
[Site "Chess.com"]
[Date "2019.04.02"]
[Round "9"]
[White "DanielMieles1985"]
[Black "JonahWillow"]
[Result "0-1"]
[WhiteElo "2653"]
[BlackElo "2704"]
[TimeControl "180+2"]
[EndTime "16:05:37 PDT"]
[Termination "JonahWillow won by resignation"]

1. d4 {[%clk 0:03:01.9]} 1... Nf6 {[%clk 0:03:01]} 2. c4 {[%clk 0:03:03.2]} 2...
c5 {[%clk 0:03:01.1]} 3. d5 {[%clk 0:03:04]} 3... e6 {[%clk 0:03:02.6]} 4. Nc3
{[%clk 0:03:04.8]} 4... exd5 {[%clk 0:03:04.3]} 5. cxd5 {[%clk 0:03:06.4]} 5...
d6 {[%clk 0:03:05.6]} 6. e4 {[%clk 0:03:07.9]} 6... g6 {[%clk 0:03:06.5]} 7. f4
{[%clk 0:03:09.5]} 7... Bg7 {[%clk 0:03:07.4]} 8. Bb5+ {[%clk 0:03:10.7]} 8...
Nfd7 {[%clk 0:03:09]} 9. a4 {[%clk 0:03:12]} 9... Qh4+ {[%clk 0:03:10.6]} 10. g3
{[%clk 0:03:13]} 10... Qe7 {[%clk 0:03:12.5]} 11. Nf3 {[%clk 0:03:13.5]} 11...
O-O {[%clk 0:03:13.2]} 12. O-O {[%clk 0:03:14.4]} 12... Na6 {[%clk 0:03:07.7]}
13. e5 {[%clk 0:03:15]} 13... dxe5 {[%clk 0:02:49.3]} 14. d6 {[%clk 0:03:15.3]}
14... Qd8 {[%clk 0:02:45.3]} 15. Re1 {[%clk 0:03:15.8]} 15... exf4 {[%clk
0:02:43.9]} 16. Bxf4 {[%clk 0:03:16.7]} 16... Nf6 {[%clk 0:02:35.2]} 17. Re7
{[%clk 0:03:17.7]} 17... Bg4 {[%clk 0:02:34.4]} 18. h3 {[%clk 0:03:17.5]} 18...
Be6 {[%clk 0:02:30.7]} 19. Ng5 {[%clk 0:03:16.8]} 19... Nh5 {[%clk 0:01:58.8]}
20. Nxe6 {[%clk 0:03:01.4]} 20... fxe6 {[%clk 0:01:56.6]} 21. Rxg7+ {[%clk
0:02:52]} 21... Kxg7 {[%clk 0:01:44.1]} 22. Be5+ {[%clk 0:02:51.6]} 22... Kg8
{[%clk 0:01:45.6]} 23. Ne4 {[%clk 0:02:49.5]} 23... Rf5 {[%clk 0:01:29.8]} 24.
Bc3 {[%clk 0:02:43.9]} 24... Rd5 {[%clk 0:01:27.6]} 25. Qg4 {[%clk 0:02:38.7]}
25... Rxd6 {[%clk 0:01:25.9]} 26. Nxd6 {[%clk 0:02:25.6]} 26... Qxd6 {[%clk
0:01:27.8]} 27. Re1 {[%clk 0:02:03.5]} 27... Rd8 {[%clk 0:01:14.3]} 28. Bc4
{[%clk 0:01:31.4]} 28... Qxg3+ {[%clk 0:01:11.1]} 29. Qxg3 {[%clk 0:01:29.3]}
29... Nxg3 {[%clk 0:01:13]} 30. Rxe6 {[%clk 0:01:25.9]} 30... Kf8 {[%clk
0:01:14]} 31. Rf6+ {[%clk 0:01:27]} 31... Ke8 {[%clk 0:01:08.7]} 32. Rf7 {[%clk
0:01:10.7]} 32... Rd7 {[%clk 0:00:52.8]} 33. Rf3 {[%clk 0:01:11.4]} 33... Nf5
{[%clk 0:00:45.6]} 34. Bb5 {[%clk 0:01:11.9]} 34... Nc7 {[%clk 0:00:42.4]} 35.
Bxd7+ {[%clk 0:01:07.9]} 35... Kxd7 {[%clk 0:00:44.3]} 36. Rd3+ {[%clk 0:01:09]}
36... Kc6 {[%clk 0:00:44.5]} 37. Rd8 {[%clk 0:01:09.9]} 37... Nd5 {[%clk
0:00:42.8]} 38. Be5 {[%clk 0:01:04.9]} 38... h5 {[%clk 0:00:41]} 39. Rc8+ {[%clk
0:01:03.3]} 39... Kb6 {[%clk 0:00:39.9]} 40. Kg2 {[%clk 0:00:56.3]} 40... Nde7
{[%clk 0:00:38.1]} 41. Re8 {[%clk 0:00:47.7]} 41... Ka5 {[%clk 0:00:36.2]} 42.
b3 {[%clk 0:00:41.6]} 42... Kb4 {[%clk 0:00:35.9]} 43. Rb8 {[%clk 0:00:42.7]}
43... b6 {[%clk 0:00:35.3]} 44. Rb7 {[%clk 0:00:43.4]} 44... Kxb3 {[%clk
0:00:32.9]} 45. Rxa7 {[%clk 0:00:43.6]} 45... Nc6 {[%clk 0:00:31.5]} 46. Ra6
{[%clk 0:00:27.8]} 46... Nxe5 {[%clk 0:00:31.7]} 47. Rxb6+ {[%clk 0:00:29.2]}
47... Kxa4 {[%clk 0:00:30.3]} 48. Kf2 {[%clk 0:00:30.5]} 48... Ka5 {[%clk
0:00:29.9]} 49. Rb8 {[%clk 0:00:31.7]} 49... c4 {[%clk 0:00:30.8]} 50. Ke2
{[%clk 0:00:32.4]} 50... c3 {[%clk 0:00:30.7]} 51. Kd1 {[%clk 0:00:31.8]} 51...
Ne3+ {[%clk 0:00:29.1]} 52. Ke2 {[%clk 0:00:31]} 52... c2 {[%clk 0:00:28.5]} 53.
Rc8 {[%clk 0:00:30.4]} 53... N3c4 {[%clk 0:00:23.2]} 54. Ra8+ {[%clk 0:00:27.4]}
54... Kb4 {[%clk 0:00:24]} 55. Ra1 {[%clk 0:00:29]} 55... Kc3 {[%clk 0:00:24.6]}
0-1

[Event "*** Titled Tuesday Blitz"]
[Site "Chess.com"]
[Date "2019.04.02"]
[Round "9"]
[White "cukus"]
[Black "effefe"]
[Result "0-1"]
[WhiteElo "2360"]
[BlackElo "2307"]
[TimeControl "180+2"]
[EndTime "16:05:46 PDT"]
[Termination "effefe won on time"]

1. e4 {[%clk 0:03:01.9]} 1... c5 {[%clk 0:02:57.7]} 2. Nf3 {[%clk 0:03:02.6]}
2... d6 {[%clk 0:02:58.7]} 3. d4 {[%clk 0:03:03.8]} 3... cxd4 {[%clk 0:03:00.6]}
4. Nxd4 {[%clk 0:03:05.4]} 4... Nf6 {[%clk 0:03:02.3]} 5. Nc3 {[%clk 0:03:07]}
5... g6 {[%clk 0:03:03.7]} 6. Be3 {[%clk 0:03:06]} 6... Bg7 {[%clk 0:03:02.4]}
7. f3 {[%clk 0:03:07.6]} 7... O-O {[%clk 0:03:03.1]} 8. Qd2 {[%clk 0:03:09.3]}
8... Nc6 {[%clk 0:03:04.3]} 9. Bc4 {[%clk 0:03:10.8]} 9... Bd7 {[%clk
0:03:04.6]} 10. O-O-O {[%clk 0:03:11.4]} 10... Rb8 {[%clk 0:03:06]} 11. Bb3
{[%clk 0:03:12.9]} 11... Na5 {[%clk 0:03:04.9]} 12. h4 {[%clk 0:03:14.1]} 12...
b5 {[%clk 0:03:05.2]} 13. h5 {[%clk 0:03:14.6]} 13... Nxb3+ {[%clk 0:03:02.3]}
14. axb3 {[%clk 0:03:15.1]} 14... e5 {[%clk 0:02:38.1]} 15. Nde2 {[%clk
0:03:09.7]} 15... b4 {[%clk 0:02:38.4]} 16. Nb1 {[%clk 0:03:05.7]} 16... Bb5
{[%clk 0:02:16.8]} 17. g4 {[%clk 0:02:54.9]} 17... d5 {[%clk 0:02:15.7]} 18. Ng3
{[%clk 0:01:58.7]} 18... dxe4 {[%clk 0:02:07.2]} 19. Qh2 {[%clk 0:01:49.5]}
19... Qc7 {[%clk 0:01:59.6]} 20. g5 {[%clk 0:01:40.6]} 20... Nxh5 {[%clk
0:01:43.1]} 21. Nxh5 {[%clk 0:01:39.6]} 21... gxh5 {[%clk 0:01:45]} 22. Qxh5
{[%clk 0:01:40]} 22... Rfc8 {[%clk 0:01:41.2]} 23. Qxh7+ {[%clk 0:01:29.9]}
23... Kf8 {[%clk 0:01:42.5]} 24. Rd2 {[%clk 0:01:27.3]} 24... Bd3 {[%clk
0:01:31.5]} 25. Rhh2 {[%clk 0:01:17.1]} 25... Qc6 {[%clk 0:01:16.7]} 26. Rh6
{[%clk 0:00:37.6]} 26... Bxh6 {[%clk 0:00:43.1]} 27. gxh6 {[%clk 0:00:37.8]}
27... Qg6 {[%clk 0:00:18.1]} 28. Qh8+ {[%clk 0:00:38.5]} 28... Ke7 {[%clk
0:00:19.5]} 29. Qxe5+ {[%clk 0:00:39.3]} 29... Qe6 {[%clk 0:00:18.8]} 30. Bg5+
{[%clk 0:00:35.3]} 30... f6 {[%clk 0:00:20.1]} 31. Bxf6+ {[%clk 0:00:35.5]}
31... Kf7 {[%clk 0:00:20]} 32. fxe4 {[%clk 0:00:16.1]} 32... Qxe5 {[%clk
0:00:18]} 33. Bxe5 {[%clk 0:00:17.3]} 33... Rb5 {[%clk 0:00:14.9]} 34. Rxd3
{[%clk 0:00:14.4]} 34... Rxe5 {[%clk 0:00:15.3]} 35. Rd7+ {[%clk 0:00:14.6]}
35... Kg6 {[%clk 0:00:15.7]} 36. Nd2 {[%clk 0:00:10.1]} 36... a5 {[%clk
0:00:15.7]} 37. Rd6+ {[%clk 0:00:09.7]} 37... Kh7 {[%clk 0:00:16]} 38. Kd1
{[%clk 0:00:11]} 38... Rh5 {[%clk 0:00:16.2]} 39. Ra6 {[%clk 0:00:08.4]} 39...
Rd8 {[%clk 0:00:14.8]} 40. Ra7+ {[%clk 0:00:04.6]} 40... Kxh6 {[%clk 0:00:15.7]}
41. Ra6+ {[%clk 0:00:05.8]} 41... Kh7 {[%clk 0:00:16.8]} 42. Ra7+ {[%clk
0:00:07.2]} 42... Kh8 {[%clk 0:00:18.3]} 43. e5 {[%clk 0:00:03]} 43... Rh2
{[%clk 0:00:17.2]} 44. e6 {[%clk 0:00:03]} 44... Rdxd2+ {[%clk 0:00:17.2]} 45.
Ke1 {[%clk 0:00:04.6]} 45... Rde2+ {[%clk 0:00:18.6]} 46. Kf1 {[%clk 0:00:05.4]}
46... Rxc2 {[%clk 0:00:19.3]} 47. Ra8+ {[%clk 0:00:02.9]} 47... Kg7 {[%clk
0:00:20.2]} 48. Kg1 {[%clk 0:00:03.4]} 48... Rhd2 {[%clk 0:00:20.6]} 49. Ra7+
{[%clk 0:00:03.1]} 49... Kf6 {[%clk 0:00:21]} 0-1